fUST/lending_fUST_20240918
["ID","MTS","AMOUNT","RATE_DAILY","PERIOD"]
[338463525,1726662641719,-500.0,0.00019178,2]
[338463526,1726662641728,-1003.64,0.00019178,2]
[338463527,1726662641738,-2034.03,0.00019178,2]
[338463528,1726662641749,-500.0,0.00019178,2]
[338463529,1726662641763,-547.86369179,0.00019178,2]
[338463530,1726662641776,-500.0,0.00019178,2]
[338463531,1726662641787,-500.0,0.00019178,2]
[338463532,1726662641800,-500.0,0.00019178,2]
[338463533,1726662641812,-500.0,0.00019178,2]
[338463534,1726662641823,-500.0,0.00019178,2]
[338463535,1726662641837,-751.56,0.00019178,2]
[338463536,1726662641849,-500.0,0.00019178,2]
[338463537,1726662641859,-500.0,0.00019178,2]
[338463538,1726662641871,-193.265891,0.00019178,2]
[338463539,1726662641883,-193.265891,0.00019178,2]
[338463540,1726662641894,-500.0,0.00019178,2]
[338463541,1726662641905,-193.265891,0.00019178,2]
[338463542,1726662641916,-193.265891,0.00019178,2]
[338463543,1726662641936,-193.265891,0.00019178,2]
[338463544,1726662641955,-193.265891,0.00019178,2]
[338463545,1726662641968,-193.265891,0.00019178,2]
[338463546,1726662641980,-193.265891,0.00019178,2]
[338463547,1726662641992,-193.265891,0.00019178,2]
[338463548,1726662642004,-193.265891,0.00019178,2]
[338463549,1726662642016,-193.265891,0.00019178,2]
[338463550,1726662642028,-193.265891,0.00019178,2]
[338463551,1726662642038,-537.25,0.00019178,2]
[338463552,1726662642050,-500.0,0.00019178,2]
[338463553,1726662642062,-500.0,0.00019178,2]
[338463554,1726662642074,-1076.86,0.00019178,2]
[338463555,1726662642085,-781.41,0.00019178,2]
[338463556,1726662642095,-500.0,0.00019178,2]
[338463557,1726662642106,-1118.78,0.00019178,2]
[338463558,1726662642116,-500.0,0.00019178,2]
[338463559,1726662642126,-500.0,0.00019178,2]
[338463560,1726662642137,-1288.82,0.00019178,2]
[338463561,1726662642147,-500.0,0.00019178,2]
[338463562,1726662642157,-643.26,0.00019178,2]
[338463563,1726662642168,-500.0,0.00019178,2]
[338463564,1726662642179,-690.65,0.00019178,2]
[338463565,1726662642190,-500.0,0.00019178,2]
[338463566,1726662642201,-682.82,0.00019178,2]
[338463567,1726662642211,-500.0,0.00019178,2]
[338463568,1726662642221,-151.0,0.00019178,2]
[338463569,1726662642232,-165.687022,0.00019178,2]
[338463570,1726662642241,-500.0,0.00019178,2]
[338463571,1726662642252,-600.47,0.00019178,2]
[338463572,1726662642262,-725.55,0.00019178,2]
[338463573,1726662642272,-500.0,0.00019178,2]
[338463574,1726662642282,-1028.77,0.00019178,2]
[338463575,1726662642292,-1060.79,0.00019178,2]
[338463576,1726662642303,-500.0,0.00019178,2]
[338463577,1726662642322,-500.0,0.00019178,2]
[338463578,1726662642332,-798.57,0.00019178,2]
[338463579,1726662642342,-1391.466493,0.00019178,2]
[338463580,1726662642352,-500.0,0.00019178,2]
[338463581,1726662642362,-151.0,0.00019178,2]
[338463583,1726662642372,-1391.466493,0.00019178,2]
[338463584,1726662642382,-151.0,0.00019178,2]
[338463585,1726662642393,-1391.466493,0.00019178,2]
[338463586,1726662642404,-151.0,0.00019178,2]
[338463587,1726662642413,-1391.466493,0.00019178,2]
[338463588,1726662642424,-299.922293,0.00019178,2]
[338463589,1726662642434,-1391.466493,0.00019178,2]
[338463590,1726662642444,-1391.466493,0.00019178,2]
[338463591,1726662642454,-1391.466493,0.00019178,2]
[338463592,1726662642464,-500.0,0.00019178,2]
[338463593,1726662642475,-1391.466493,0.00019178,2]
[338463594,1726662642487,-1391.466493,0.00019178,2]
[338463595,1726662642497,-1391.466493,0.00019178,2]
[338463596,1726662642507,-500.0,0.00019178,2]
[338463597,1726662642518,-1391.466493,0.00019178,2]
[338463598,1726662642528,-1010.25,0.00019178,2]
[338463599,1726662642542,-500.0,0.00019178,2]
[338463600,1726662642556,-1391.466493,0.00019178,2]
[338463601,1726662642568,-151.645653,0.00019178,2]
[338463602,1726662642579,-500.0,0.00019178,2]
[338463603,1726662642592,-1166.63,0.00019178,2]
[338463604,1726662642603,-500.0,0.00019178,2]
[338463605,1726662642614,-500.0,0.00019178,2]
[338463606,1726662642625,-593.69,0.00019178,2]
[338463607,1726662642635,-667.92,0.00019178,2]
[338463608,1726662642646,-500.0,0.00019178,2]
[338463609,1726662642656,-500.0,0.00019178,2]
[338463610,1726662642667,-500.0,0.00019178,2]
[338463611,1726662642679,-500.0,0.00019178,2]
[338463612,1726662642692,-800.86,0.00019178,2]
[338463613,1726662642703,-591.43,0.00019178,2]
[338463614,1726662642715,-500.0,0.00019178,2]
[338463615,1726662642727,-500.0,0.00019178,2]
[338463616,1726662642738,-500.0,0.00019178,2]
[338463617,1726662642749,-500.0,0.00019178,2]
[338463618,1726662642764,-698.47,0.00019178,2]
[338463619,1726662642775,-500.0,0.00019178,2]
[338463620,1726662642788,-500.0,0.00019178,2]
[338463621,1726662642900,-913.95,0.00019178,2]
[338463622,1726662642910,-500.0,0.00019178,2]
[338463623,1726662642922,-500.0,0.00019178,2]
[338463624,1726662642933,-3095.41,0.00019178,2]
[338463625,1726662642945,-1946.95,0.00019178,2]
[338463626,1726662642955,-500.0,0.00019178,2]
[338463627,1726662642966,-1105.8,0.00019178,2]
[338463628,1726662642976,-895.83,0.00019178,2]
[338463629,1726662642987,-500.0,0.00019178,2]
[338463630,1726662642997,-151.0,0.00019178,2]
[338463631,1726662643008,-151.0,0.00019178,2]
[338463632,1726662643020,-151.0,0.00019178,2]
[338463633,1726662643032,-151.0,0.00019178,2]
[338463634,1726662643043,-500.0,0.00019178,2]
[338463635,1726662643054,-151.0,0.00019178,2]
[338463636,1726662643064,-500.0,0.00019178,2]
[338463637,1726662643074,-151.0,0.00019178,2]
[338463638,1726662643084,-500.0,0.00019178,2]
[338463639,1726662643093,-151.0,0.00019178,2]
[338463640,1726662643106,-974.16,0.00019178,2]
[338463641,1726662643116,-500.0,0.00019178,2]
[338463642,1726662643126,-444.57796387,0.00019178,2]
[338463643,1726662643136,-151.0,0.00019178,2]
[338463644,1726662643147,-151.0,0.00019178,2]
[338463645,1726662643157,-151.0,0.00019178,2]
[338463646,1726662643168,-500.0,0.00019178,2]
[338463647,1726662643180,-151.0,0.00019178,2]
[338463648,1726662643189,-155.963843,0.00019178,2]
[338463649,1726662643199,-334.16401562,0.00019178,2]
[338463650,1726662643209,-500.0,0.00019178,2]
[338463651,1726662643221,-500.0,0.00019178,2]
[338463652,1726662643233,-500.0,0.00019178,2]
[338463653,1726662643243,-500.0,0.00019178,2]
[338463654,1726662643253,-500.0,0.00019178,2]
[338463655,1726662643264,-2207.23,0.00019178,2]
[338463656,1726662643275,-1040.28,0.00019178,2]
[338463657,1726662643286,-1277.79,0.00019178,2]
[338463658,1726662643297,-500.0,0.00019178,2]
[338463659,1726662643318,-913.77,0.00019178,2]
[338463660,1726662643328,-245.62,0.00019178,2]
[338463661,1726662643338,-500.0,0.00019178,2]
[338463662,1726662643350,-295.56,0.00019178,2]
[338463663,1726662643362,-500.0,0.00019178,2]
[338463664,1726662643372,-1411.87,0.00019178,2]
[338463665,1726662643383,-500.0,0.00019178,2]
[338463666,1726662643392,-500.0,0.00019178,2]
[338463667,1726662643403,-645.59,0.00019178,2]
[338463668,1726662643415,-500.0,0.00019178,2]
[338463669,1726662643425,-500.0,0.00019178,2]
[338463670,1726662643436,-500.0,0.00019178,2]
[338463671,1726662643445,-500.0,0.00019178,2]
[338463672,1726662643455,-643.85,0.00019178,2]
[338463673,1726662643467,-500.0,0.00019178,2]
[338463674,1726662643476,-500.0,0.00019178,2]
[338463675,1726662643488,-500.0,0.00019178,2]
[338463676,1726662643498,-629.31,0.00019178,2]
[338463677,1726662643509,-500.0,0.00019178,2]
[338463678,1726662643519,-1820.69,0.00019178,2]
[338463679,1726662643529,-560.27,0.00019178,2]
[338463680,1726662643539,-500.0,0.00019178,2]
[338463681,1726662643552,-500.0,0.00019178,2]
[338463682,1726662643561,-841.78,0.00019178,2]
[338463683,1726662643572,-538.41,0.00019178,2]
[338463684,1726662643583,-500.0,0.00019178,2]
[338463685,1726662643593,-500.0,0.00019178,2]
[338463686,1726662643604,-1182.35,0.00019178,2]
[338463687,1726662643615,-836.69,0.00019178,2]
[338463688,1726662643626,-1406.75,0.00019178,2]
[338463689,1726662643636,-500.0,0.00019178,2]
[338463690,1726662643647,-500.0,0.00019178,2]
[338463691,1726662643657,-956.82,0.00019178,2]
[338463692,1726662643667,-1471.43,0.00019178,2]
[338463693,1726662643677,-500.0,0.00019178,2]
[338463694,1726662643687,-500.0,0.00019178,2]
[338463695,1726662643698,-627.55,0.00019178,2]
[338463696,1726662643709,-1668.01,0.00019178,2]
[338463697,1726662643720,-500.0,0.00019178,2]
[338463698,1726662643731,-500.0,0.00019178,2]
[338463699,1726662643743,-500.0,0.00019178,2]
[338463700,1726662643756,-500.0,0.00019178,2]
[338463701,1726662643765,-507.36,0.00019178,2]
[338463702,1726662643775,-1287.42,0.00019178,2]
[338463703,1726662643785,-615.94,0.00019178,2]
[338463704,1726662643795,-500.0,0.00019178,2]
[338463705,1726662643810,-1073.15,0.00019178,2]
[338463706,1726662643819,-1611.82,0.00019178,2]
[338463707,1726662643829,-500.0,0.00019178,2]
[338463708,1726662643841,-899.24,0.00019178,2]
[338463709,1726662643851,-899.24,0.00019178,2]
[338463710,1726662643861,-899.24,0.00019178,2]
[338463711,1726662643871,-899.24,0.00019178,2]
[338463712,1726662643881,-500.0,0.00019178,2]
[338463713,1726662643891,-899.24,0.00019178,2]
[338463714,1726662643901,-899.24,0.00019178,2]
[338463715,1726662643911,-899.24,0.00019178,2]
[338463716,1726662643920,-691.39,0.00019178,2]
[338463717,1726662643929,-899.24,0.00019178,2]
[338463718,1726662643939,-899.24,0.00019178,2]
[338463719,1726662643949,-899.24,0.00019178,2]
[338463720,1726662643959,-899.24,0.00019178,2]
[338463721,1726662643968,-500.0,0.00019178,2]
[338463722,1726662643979,-899.24,0.00019178,2]
[338463723,1726662643990,-899.24,0.00019178,2]
[338463724,1726662644001,-899.24,0.00019178,2]
[338463725,1726662644011,-483.454656,0.00019178,2]
[338463726,1726662644021,-899.24,0.00019178,2]
[338463727,1726662644031,-483.454656,0.00019178,2]
[338463728,1726662644042,-899.24,0.00019178,2]
[338463729,1726662644054,-483.454656,0.00019178,2]
[338463730,1726662644064,-899.24,0.00019178,2]
[338463731,1726662644074,-500.0,0.00019178,2]
[338463732,1726662644084,-899.24,0.00019178,2]
[338463733,1726662644093,-483.454656,0.00019178,2]
[338463734,1726662644103,-899.24,0.00019178,2]
[338463735,1726662644112,-483.454656,0.00019178,2]
[338463736,1726662644122,-899.24,0.00019178,2]
[338463737,1726662644131,-483.454656,0.00019178,2]
[338463738,1726662644140,-483.454656,0.00019178,2]
[338463739,1726662644150,-899.24,0.00019178,2]
[338463740,1726662644160,-503.29,0.00019178,2]
[338463741,1726662644170,-899.24,0.00019178,2]
[338463742,1726662644180,-483.454656,0.00019178,2]
[338463743,1726662644193,-899.24,0.00019178,2]
[338463744,1726662644203,-899.32634633,0.00019178,2]
[338463745,1726662644213,-483.454656,0.00019178,2]
[338463746,1726662644225,-483.454656,0.00019178,2]
[338463747,1726662644237,-1948.05,0.00019178,2]
[338463748,1726662644248,-483.454656,0.00019178,2]
[338463749,1726662644258,-483.454656,0.00019178,2]
[338463750,1726662644269,-483.454656,0.00019178,2]
[338463751,1726662644280,-483.454656,0.00019178,2]
[338463752,1726662644291,-1158.62,0.00019178,2]
[338463753,1726662644303,-500.0,0.00019178,2]
[338463754,1726662644314,-500.0,0.00019178,2]
[338463755,1726662644324,-2255.98,0.00019178,2]
[338463756,1726662644336,-500.0,0.00019178,2]
[338463757,1726662644346,-500.0,0.00019178,2]
[338463758,1726662644356,-790.92,0.00019178,2]
[338463759,1726662644366,-500.0,0.00019178,2]
[338463760,1726662644375,-788.95,0.00019178,2]
[338463761,1726662644385,-500.0,0.00019178,2]
[338463762,1726662644397,-1982.53,0.00019178,2]
[338463763,1726662644406,-500.0,0.00019178,2]
[338463764,1726662644419,-500.0,0.00019178,2]
[338463765,1726662644430,-500.0,0.00019178,2]
[338463766,1726662644440,-358.293428,0.00019178,2]
[338463767,1726662644450,-358.293428,0.00019178,2]
[338463768,1726662644461,-358.293428,0.00019178,2]
[338463769,1726662644471,-358.293428,0.00019178,2]
[338463770,1726662644480,-358.293428,0.00019178,2]
[338463771,1726662644490,-816.53,0.00019178,2]
[338463772,1726662644499,-358.293428,0.00019178,2]
[338463773,1726662644509,-210.20224572,0.00019178,2]
[338463774,1726662644519,-358.293428,0.00019178,2]
[338463775,1726662644530,-500.0,0.00019178,2]
[338463776,1726662644541,-1468.13,0.00019178,2]
[338463777,1726662644551,-358.293428,0.00019178,2]
[338463778,1726662644561,-358.293428,0.00019178,2]
[338463779,1726662644572,-500.0,0.00019178,2]
[338463780,1726662644583,-500.0,0.00019178,2]
[338463781,1726662644594,-358.293428,0.00019178,2]
[338463782,1726662644605,-358.293428,0.00019178,2]
[338463783,1726662644616,-358.293428,0.00019178,2]
[338463784,1726662644627,-517.57497821,0.00019178,2]
[338463785,1726662644638,-358.293428,0.00019178,2]
[338463786,1726662644650,-895.81,0.00019178,2]
[338463787,1726662644660,-358.293428,0.00019178,2]
[338463788,1726662644671,-500.0,0.00019178,2]
[338463789,1726662644680,-595.29,0.00019178,2]
[338463790,1726662644692,-500.0,0.00019178,2]
[338463791,1726662644702,-617.08,0.00019178,2]
[338463792,1726662644713,-1345.3,0.00019178,2]
[338463793,1726662644724,-1056.968926,0.00019178,2]
[338463794,1726662644734,-500.0,0.00019178,2]
[338463795,1726662644744,-1056.968926,0.00019178,2]
[338463796,1726662644760,-1056.968926,0.00019178,2]
[338463797,1726662644770,-158.487758,0.00019178,2]
[338463798,1726662644781,-1056.968926,0.00019178,2]
[338463799,1726662644792,-158.487758,0.00019178,2]
[338463800,1726662644804,-1056.968926,0.00019178,2]
[338463801,1726662644816,-158.487758,0.00019178,2]
[338463802,1726662644829,-1056.968926,0.00019178,2]
[338463803,1726662644839,-158.487758,0.00019178,2]
[338463804,1726662644851,-2385.1,0.00019178,2]
[338463805,1726662644862,-1056.968926,0.00019178,2]
[338463806,1726662644872,-158.487758,0.00019178,2]
[338463807,1726662644883,-158.487758,0.00019178,2]
[338463808,1726662644895,-158.487758,0.00019178,2]
[338463809,1726662644907,-1056.968926,0.00019178,2]
[338463810,1726662644917,-250.0,0.00019178,2]
[338463811,1726662644928,-1056.968926,0.00019178,2]
[338463812,1726662644940,-1661.03,0.00019178,2]
[338463813,1726662644951,-1056.968926,0.00019178,2]
[338463814,1726662644961,-1056.968926,0.00019178,2]
[338463815,1726662644971,-158.487758,0.00019178,2]
[338463816,1726662644983,-1056.968926,0.00019178,2]
[338463817,1726662644994,-158.487758,0.00019178,2]
[338463818,1726662645006,-1056.968926,0.00019178,2]
[338463819,1726662645017,-158.487758,0.00019178,2]
[338463820,1726662645029,-500.0,0.00019178,2]
[338463821,1726662645040,-500.0,0.00019178,2]
[338463822,1726662645050,-158.487758,0.00019178,2]
[338463823,1726662645060,-1056.968926,0.00019178,2]
[338463824,1726662645069,-158.487758,0.00019178,2]
[338463825,1726662645079,-500.0,0.00019178,2]
[338463826,1726662645089,-662.97,0.00019178,2]
[338463827,1726662645099,-158.487758,0.00019178,2]
[338463828,1726662645109,-158.487758,0.00019178,2]
[338463829,1726662645119,-500.0,0.00019178,2]
[338463830,1726662645130,-944.03,0.00019178,2]
[338463831,1726662645139,-500.0,0.00019178,2]
[338463832,1726662645150,-500.0,0.00019178,2]
[338463833,1726662645159,-650.83,0.00019178,2]
[338463834,1726662645169,-2145.61,0.00019178,2]
[338463835,1726662645178,-500.0,0.00019178,2]
[338463836,1726662645188,-582.38,0.00019178,2]
[338463837,1726662645198,-500.0,0.00019178,2]
[338463838,1726662645208,-631.2349965,0.00019178,2]
[338463839,1726662645217,-988.8,0.00019178,2]
[338463840,1726662645227,-1404.07,0.00019178,2]
[338463841,1726662645236,-500.0,0.00019178,2]
[338463842,1726662645246,-500.0,0.00019178,2]
[338463843,1726662645255,-549.32,0.00019178,2]
[338463844,1726662645265,-500.0,0.00019178,2]
[338463845,1726662645275,-500.0,0.00019178,2]
[338463846,1726662645284,-500.0,0.00019178,2]
[338463847,1726662645295,-689.12,0.00019178,2]
[338463848,1726662645305,-500.0,0.00019178,2]
[338463849,1726662645324,-500.0,0.00019178,2]
[338463850,1726662645334,-151.0,0.00019178,2]
[338463851,1726662645343,-151.0,0.00019178,2]
[338463852,1726662645353,-151.0,0.00019178,2]
[338463853,1726662645363,-151.0,0.00019178,2]
[338463854,1726662645372,-154.946537,0.00019178,2]
[338463855,1726662645382,-500.0,0.00019178,2]
[338463856,1726662645392,-800.28,0.00019178,2]
[338463857,1726662645403,-800.28,0.00019178,2]
[338463858,1726662645414,-800.28,0.00019178,2]
[338463859,1726662645424,-800.28,0.00019178,2]
[338463860,1726662645434,-800.28,0.00019178,2]
[338463861,1726662645446,-800.28,0.00019178,2]
[338463862,1726662645457,-800.28,0.00019178,2]
[338463863,1726662645466,-800.28,0.00019178,2]
[338463864,1726662645477,-500.0,0.00019178,2]
[338463865,1726662645489,-800.28,0.00019178,2]
[338463866,1726662645498,-800.28,0.00019178,2]
[338463867,1726662645509,-800.28,0.00019178,2]
[338463868,1726662645520,-800.28,0.00019178,2]
[338463869,1726662645531,-800.28,0.00019178,2]
[338463870,1726662645542,-800.28,0.00019178,2]
[338463871,1726662645558,-1757.25,0.00019178,2]
[338463872,1726662645569,-800.28,0.00019178,2]
[338463873,1726662645579,-800.28,0.00019178,2]
[338463874,1726662645590,-500.0,0.00019178,2]
[338463875,1726662645601,-800.28,0.00019178,2]
[338463876,1726662645611,-800.28,0.00019178,2]
[338463877,1726662645621,-800.28,0.00019178,2]
[338463878,1726662645631,-500.0,0.00019178,2]
[338463879,1726662645644,-800.28,0.00019178,2]
[338463880,1726662645654,-800.28,0.00019178,2]
[338463881,1726662645665,-508.53,0.00019178,2]
[338463882,1726662645676,-800.28,0.00019178,2]
[338463883,1726662645686,-800.28,0.00019178,2]
[338463884,1726662645697,-500.0,0.00019178,2]
[338463885,1726662645707,-800.50075232,0.00019178,2]
[338463886,1726662645716,-602.68751227,0.00019178,2]
[338463887,1726662645726,-500.0,0.00019178,2]
[338463888,1726662645736,-1002.48,0.00019178,2]
[338463889,1726662645746,-500.0,0.00019178,2]
[338463890,1726662645760,-547.25,0.00019178,2]
[338463891,1726662645769,-594.48,0.00019178,2]
[338463892,1726662645779,-500.0,0.00019178,2]
[338463893,1726662645788,-713.34,0.00019178,2]
[338463894,1726662645799,-500.0,0.00019178,2]
[338463895,1726662645811,-1125.54,0.00019178,2]
[338463896,1726662645822,-1344.49,0.00019178,2]
[338463897,1726662645834,-500.0,0.00019178,2]
[338463898,1726662645844,-1568.9,0.00019178,2]
[338463899,1726662645856,-500.0,0.00019178,2]
[338463900,1726662645867,-500.0,0.00019178,2]
[338463901,1726662645877,-500.0,0.00019178,2]
[338463902,1726662645887,-732.79,0.00019178,2]
[338463903,1726662645897,-1708.71,0.00019178,2]
[338463904,1726662645907,-1677.34,0.00019178,2]
[338463905,1726662645917,-580.53,0.00019178,2]
[338463906,1726662645927,-500.0,0.00019178,2]
[338463907,1726662645938,-3332.9,0.00019178,2]
[338463908,1726662645948,-642.45,0.00019178,2]
[338463909,1726662645959,-982.79,0.00019178,2]
[338463910,1726662645970,-500.0,0.00019178,2]
[338463911,1726662645980,-500.0,0.00019178,2]
[338463912,1726662645990,-500.0,0.00019178,2]
[338463913,1726662645999,-500.0,0.00019178,2]
[338463914,1726662646011,-500.0,0.00019178,2]
[338463915,1726662646023,-486.55565344,0.00019178,2]
[338463974,1726662647068,-2381.96715792,0.00018821,2]
[338463975,1726662647078,-13.44434656,0.00019178,2]
[338463977,1726662647088,-500.0,0.00019178,2]
[338463978,1726662647097,-725.74,0.00019178,2]
[338463979,1726662647106,-500.0,0.00019178,2]
[338463980,1726662647116,-742.01,0.00019178,2]
[338463981,1726662647126,-500.0,0.00019178,2]
[338463982,1726662647138,-1237.7,0.00019178,2]
[338463983,1726662647148,-500.0,0.00019178,2]
[338463984,1726662647160,-1158.38,0.00019178,2]
[338463985,1726662647172,-651.83,0.00019178,2]
[338463986,1726662647182,-500.0,0.00019178,2]
[338463987,1726662647193,-1271.14,0.00019178,2]
[338463988,1726662647203,-559.26,0.00019178,2]
[338463989,1726662647215,-500.0,0.00019178,2]
[338463990,1726662647225,-500.0,0.00019178,2]
[338463991,1726662647234,-523.89,0.00019178,2]
[338463992,1726662647246,-500.0,0.00019178,2]
[338463993,1726662647257,-500.0,0.00019178,2]
[338463994,1726662647267,-500.0,0.00019178,2]
[338463995,1726662647276,-513.27,0.00019178,2]
[338463996,1726662647287,-500.0,0.00019178,2]
[338463997,1726662647306,-891.2,0.00019178,2]
[338463998,1726662647318,-500.0,0.00019178,2]
[338463999,1726662647328,-500.0,0.00019178,2]
[338464000,1726662647338,-500.0,0.00019178,2]
[338464001,1726662647348,-1677.11,0.00019178,2]
[338464002,1726662647358,-500.0,0.00019178,2]
[338464003,1726662647368,-500.0,0.00019178,2]
[338464004,1726662647379,-1233.36,0.00019178,2]
[338464005,1726662647390,-500.0,0.00019178,2]
[338464006,1726662647400,-1845.09,0.00019178,2]
[338464007,1726662647409,-920.14,0.00019178,2]
[338464008,1726662647419,-229.65646033,0.00019178,2]
[338464009,1726662647429,-329.90250438,0.00019178,2]
[338464010,1726662647439,-404.06059172,0.00019178,2]
[338464011,1726662647449,-1008.99,0.00019178,2]
[338464012,1726662647460,-500.0,0.00019178,2]
[338464013,1726662647471,-367.857209,0.00019178,2]
[338464014,1726662647481,-367.857209,0.00019178,2]
[338464015,1726662647491,-367.857209,0.00019178,2]
[338464016,1726662647501,-367.857209,0.00019178,2]
[338464017,1726662647511,-500.0,0.00019178,2]
[338464018,1726662647523,-367.857209,0.00019178,2]
[338464019,1726662647535,-654.61,0.00019178,2]
[338464020,1726662647547,-367.857209,0.00019178,2]
[338464021,1726662647561,-500.0,0.00019178,2]
[338464022,1726662647572,-367.857209,0.00019178,2]
[338464023,1726662647581,-500.0,0.00019178,2]
[338464024,1726662647592,-1134.81,0.00019178,2]
[338464025,1726662647602,-367.857209,0.00019178,2]
[338464026,1726662647614,-367.857209,0.00019178,2]
[338464027,1726662647624,-367.857209,0.00019178,2]
[338464028,1726662647636,-367.857209,0.00019178,2]
[338464029,1726662647646,-367.857209,0.00019178,2]
[338464030,1726662647658,-367.857209,0.00019178,2]
[338464031,1726662647668,-367.857209,0.00019178,2]
[338464032,1726662647678,-500.0,0.00019178,2]
[338464033,1726662647691,-567.19,0.00019178,2]
[338464034,1726662647702,-500.0,0.00019178,2]
[338464035,1726662647712,-500.0,0.00019178,2]
[338464036,1726662647724,-500.0,0.00019178,2]
[338464037,1726662647737,-1243.31,0.00019178,2]
[338464038,1726662647749,-694.71,0.00019178,2]
[338464039,1726662647763,-500.0,0.00019178,2]
[338464040,1726662647773,-685.1,0.00019178,2]
[338464041,1726662647784,-757.83,0.00019178,2]
[338464042,1726662647795,-3575.25,0.00019178,2]
[338464043,1726662647806,-428.84788,0.00019178,2]
[338464044,1726662647815,-428.84788,0.00019178,2]
[338464045,1726662647825,-428.84788,0.00019178,2]
[338464046,1726662647835,-428.84788,0.00019178,2]
[338464047,1726662647845,-500.0,0.00019178,2]
[338464048,1726662647854,-428.84788,0.00019178,2]
[338464049,1726662647863,-1118.28,0.00019178,2]
[338464050,1726662647873,-428.84788,0.00019178,2]
[338464051,1726662647882,-428.84788,0.00019178,2]
[338464052,1726662647892,-428.84788,0.00019178,2]
[338464053,1726662647901,-500.0,0.00019178,2]
[338464054,1726662647910,-428.84788,0.00019178,2]
[338464055,1726662647924,-500.0,0.00019178,2]
[338464056,1726662647935,-428.84788,0.00019178,2]
[338464057,1726662647944,-428.84788,0.00019178,2]
[338464058,1726662647954,-428.84788,0.00019178,2]
[338464059,1726662647963,-500.0,0.00019178,2]
[338464060,1726662647973,-428.84788,0.00019178,2]
[338464061,1726662647982,-428.84788,0.00019178,2]
[338464062,1726662647992,-1488.86,0.00019178,2]
[338464063,1726662648003,-500.0,0.00019178,2]
[338464064,1726662648014,-500.0,0.00019178,2]
[338464065,1726662648023,-500.0,0.00019178,2]
[338464066,1726662648034,-500.0,0.00019178,2]
[338464067,1726662648045,-500.0,0.00019178,2]
[338464068,1726662648060,-151.0,0.00019178,2]
[338464069,1726662648075,-218.689446,0.00019178,2]
[338464070,1726662648085,-500.0,0.00019178,2]
[338464071,1726662648094,-616.55,0.00019178,2]
[338464072,1726662648104,-500.0,0.00019178,2]
[338464073,1726662648113,-500.0,0.00019178,2]
[338464074,1726662648123,-500.0,0.00019178,2]
[338464075,1726662648132,-500.0,0.00019178,2]
[338464076,1726662648142,-500.0,0.00019178,2]
[338464077,1726662648152,-683.51,0.00019178,2]
[338464078,1726662648162,-500.0,0.00019178,2]
[338464079,1726662648172,-500.0,0.00019178,2]
[338464080,1726662648182,-500.0,0.00019178,2]
[338464081,1726662648192,-974.54,0.00019178,2]
[338464082,1726662648202,-1736.18,0.00019178,2]
[338464083,1726662648211,-151.0,0.00019178,2]
[338464084,1726662648222,-500.0,0.00019178,2]